lending/lending_fUSD_20240128
["ID","MTS","AMOUNT","RATE_DAILY","PERIOD"]
[312938466,1706470298580,-500.0,0.00053972,31]
[312938467,1706470298589,-500.0,0.00053972,31]
[312938468,1706470298599,-500.0,0.00053972,31]
[312938469,1706470298607,-500.0,0.00053972,31]
[312938470,1706470298617,-500.0,0.00053972,31]
[312938471,1706470298629,-859.61,0.00053972,2]
[312938472,1706470298639,-1182.48,0.00053972,31]
[312938473,1706470298649,-500.0,0.00053972,31]
[312938474,1706470298660,-1605.92,0.00053972,31]
[312938475,1706470298669,-500.0,0.00053972,2]
[312938476,1706470298678,-717.72,0.00053972,31]
[312938477,1706470298687,-1132.61,0.00053972,31]
[312938478,1706470298696,-500.0,0.00053972,20]
[312938479,1706470298705,-500.0,0.00053972,15]
[312938480,1706470298714,-500.0,0.00053972,31]
[312938481,1706470298724,-1180.53,0.00053972,2]
[312938482,1706470298734,-574.75,0.00053972,31]
[312938483,1706470298745,-500.0,0.00053972,31]
[312938484,1706470298754,-500.0,0.00053972,31]
[312938485,1706470298765,-638.96119598,0.00053972,31]
[312938486,1706470298775,-500.0,0.00053972,31]
[312938487,1706470298785,-500.0,0.00053972,31]
[312938488,1706470298795,-329.18572427,0.00053972,2]
[312938489,1706470298804,-500.0,0.00053972,31]
[312938490,1706470298814,-1240.16,0.00053972,2]
[312938491,1706470298823,-674.38,0.00053972,31]
[312938492,1706470298833,-500.0,0.00053972,31]
[312938493,1706470298842,-734.77,0.00053972,2]
[312938494,1706470298852,-529.02441847,0.00053972,31]
[312938495,1706470298862,-500.0,0.00053972,31]
[312938496,1706470298871,-500.0,0.00053972,31]
[312938497,1706470298881,-500.0,0.00053972,31]
[312938498,1706470298890,-500.0,0.00053972,31]
[312938499,1706470298900,-500.0,0.00053972,31]
[312938500,1706470298909,-500.0,0.00053972,31]
[312938501,1706470298918,-500.0,0.00053972,31]
[312938502,1706470298928,-500.0,0.00053972,31]
[312938503,1706470298938,-500.0,0.00053972,31]
[312938504,1706470298949,-500.0,0.00053972,31]
[312938505,1706470298959,-500.0,0.00053972,31]
[312938506,1706470298968,-500.0,0.00053972,31]
[312938507,1706470298977,-1012.49,0.00053972,7]
[312938508,1706470298987,-500.0,0.00053972,31]
[312938509,1706470298997,-277.27117111,0.00053972,120]
[312938510,1706470299215,-500.0,0.00053972,31]
[312938511,1706470299225,-500.0,0.00053972,31]
[312938512,1706470299234,-500.0,0.00053972,31]
[312938513,1706470299244,-500.0,0.00053972,31]
[312938514,1706470299253,-500.0,0.00053972,31]
[312938515,1706470299262,-500.0,0.00053972,31]
[312938516,1706470299272,-500.0,0.00053972,31]
[312938517,1706470299281,-202.62340465,0.00053972,31]
[312938518,1706470299290,-1000.0,0.00053972,2]
[312938519,1706470299299,-388.54,0.00053972,31]
[312938520,1706470299309,-500.0,0.00053972,31]
[312938521,1706470299318,-500.0,0.00053972,31]
[312938522,1706470299328,-539.05140191,0.00053972,31]
[312938523,1706470299336,-500.0,0.00053972,31]
[312938524,1706470299345,-524.66,0.00053972,31]
[312938525,1706470299354,-942.54,0.00053972,31]
[312938526,1706470299363,-500.0,0.00053972,31]
[312938527,1706470299372,-371.83,0.00053972,31]
[312938528,1706470299383,-500.0,0.00053972,31]
[312938529,1706470299393,-396.01,0.00053972,31]
[312938530,1706470299402,-500.0,0.00053972,31]
[312938531,1706470299411,-500.0,0.00053972,31]
[312938532,1706470299421,-500.0,0.00053972,31]
[312938533,1706470299430,-630.25,0.00053972,31]
[312938534,1706470299439,-500.0,0.00053972,31]
[312938535,1706470299449,-500.0,0.00053972,31]
[312938536,1706470299458,-500.0,0.00053972,31]
[312938537,1706470299467,-513.19,0.00053972,31]
[312938538,1706470299476,-500.0,0.00053972,31]
[312938539,1706470299485,-239.41,0.00053972,31]
[312938540,1706470299494,-797.06,0.00053972,2]
[312938541,1706470299504,-1179.11,0.00053972,7]
[312938542,1706470299513,-500.0,0.00053972,31]
[312938543,1706470299523,-500.0,0.00053972,31]
[312938544,1706470299531,-500.0,0.00053972,120]
[312938545,1706470299541,-500.0,0.00053972,31]
[312938546,1706470299550,-500.0,0.00053972,31]
[312938547,1706470299559,-500.0,0.00053972,14]
[312938548,1706470299568,-500.0,0.00053972,31]
[312938549,1706470299578,-500.0,0.00053972,31]
[312938550,1706470299587,-506.17,0.00053972,31]
[312938551,1706470299596,-500.0,0.00053972,31]
[312938552,1706470299605,-537.17,0.00053972,31]
[312938553,1706470299614,-546.99,0.00053972,31]
[312938554,1706470299623,-500.0,0.00053972,31]
[312938555,1706470299632,-500.0,0.00053972,31]
[312938556,1706470299641,-268.33,0.00053972,31]
[312938557,1706470299651,-500.0,0.00053972,31]
[312938558,1706470299661,-230.61451343,0.00053972,31]
[312938559,1706470299670,-500.0,0.00053972,31]
[312938560,1706470299680,-500.0,0.00053972,31]
[312938561,1706470299689,-500.0,0.00053972,31]
[312938562,1706470299698,-641.85947904,0.00053972,31]
[312938563,1706470299708,-500.0,0.00053972,31]
[312938564,1706470299717,-458.04473989,0.00053972,31]
[312938565,1706470299727,-500.0,0.00053972,31]
[312938566,1706470299737,-500.0,0.00053972,31]
[312938567,1706470299753,-500.0,0.00053972,31]
[312938568,1706470299772,-500.0,0.00053972,31]
[312938569,1706470299788,-500.0,0.00053972,31]
[312938570,1706470299807,-500.02,0.00053972,31]
[312938571,1706470299824,-641.82,0.00053972,31]
[312938572,1706470299841,-500.0,0.00053972,31]
[312938573,1706470299860,-500.0,0.00053972,31]
[312938574,1706470299875,-589.15,0.00053972,31]
[312938575,1706470299896,-500.0,0.00053972,31]
[312938576,1706470299912,-500.0,0.00053972,31]
[312938577,1706470299930,-500.0,0.00053972,31]
[312938578,1706470299951,-500.0,0.00053972,31]
[312938579,1706470299963,-614.17,0.00053972,31]
[312938580,1706470299979,-1086.47,0.00053972,31]
[312938581,1706470299996,-500.0,0.00053972,31]
[312938582,1706470300011,-500.0,0.00053972,31]
[312938583,1706470300028,-500.0,0.00053972,31]
[312938584,1706470300042,-500.0,0.00053972,31]
[312938585,1706470300057,-500.0,0.00053972,31]
[312938586,1706470300073,-500.0,0.00053972,31]
[312938587,1706470300088,-500.0,0.00053972,31]
[312938588,1706470300103,-539.53,0.00053972,31]
[312938589,1706470300117,-631.83721519,0.00053972,31]
[312938590,1706470300131,-500.0,0.00053972,31]
[312938591,1706470300146,-407.69410493,0.00053972,31]
[312938592,1706470300160,-500.0,0.00053972,31]
[312938593,1706470300175,-500.0,0.00053972,31]
[312938594,1706470300189,-500.0,0.00053972,31]
[312938595,1706470300203,-500.0,0.00053972,31]
[312938596,1706470300219,-500.0,0.00053972,31]
[312938597,1706470300233,-500.0,0.00053972,31]
[312938598,1706470300248,-447.58889187,0.00053972,31]
[312938599,1706470300263,-500.0,0.00053972,31]
[312938600,1706470300278,-500.0,0.00053972,31]
[312938601,1706470300292,-500.0,0.00053972,31]
[312938602,1706470300307,-500.0,0.00053972,31]
[312938603,1706470300322,-190.33161308,0.00053972,31]
[312938604,1706470300336,-500.0,0.00053972,31]
[312938605,1706470300350,-500.0,0.00053972,31]
[312938606,1706470300364,-1000.0,0.00053972,7]
[312938607,1706470300381,-500.0,0.00053972,31]
[312938608,1706470300395,-500.0,0.00053972,31]
[312938609,1706470300408,-500.0,0.00053972,31]
[312938610,1706470300422,-500.0,0.00053972,31]
[312938611,1706470300437,-500.0,0.00053972,31]
[312938612,1706470300450,-500.0,0.00053972,31]
[312938613,1706470300463,-500.0,0.00053972,31]
[312938614,1706470300477,-500.0,0.00053972,31]
[312938615,1706470300490,-648.60766515,0.00053972,31]
[312938616,1706470300504,-500.0,0.00053972,31]
[312938617,1706470300518,-384.57362215,0.00053972,31]
[312938618,1706470300531,-500.0,0.00053972,31]
[312938619,1706470300545,-500.0,0.00053972,31]
[312938620,1706470300559,-500.0,0.00053972,31]
[312938621,1706470300573,-500.0,0.00053972,31]
[312938622,1706470300587,-500.0,0.00053972,31]
[312938623,1706470300600,-591.32982642,0.00053972,31]
[312938624,1706470300614,-500.0,0.00053972,31]
[312938625,1706470300627,-500.0,0.00053972,31]
[312938626,1706470300640,-287.06926994,0.00053972,31]
[312938627,1706470300654,-500.0,0.00053972,31]
[312938628,1706470300668,-958.05,0.00053972,31]
[312938629,1706470300682,-500.0,0.00053972,31]
[312938630,1706470300696,-500.0,0.00053972,31]
[312938631,1706470300709,-866.15,0.00053972,31]
[312938632,1706470300724,-1000.0,0.00053972,7]
[312938633,1706470300738,-500.0,0.00053972,31]
[312938634,1706470300752,-1465.95,0.00053972,31]
[312938635,1706470300766,-500.0,0.00053972,31]
[312938636,1706470300780,-558.8,0.00053972,31]
[312938637,1706470300794,-702.82,0.00053972,31]
[312938638,1706470300807,-500.0,0.00053972,31]
[312938639,1706470300820,-528.63,0.00053972,31]
[312938640,1706470300834,-1050.63,0.00053972,31]
[312938641,1706470300848,-500.0,0.00053972,31]
[312938642,1706470300861,-2515.85,0.00053972,5]
[312938643,1706470300876,-538.33,0.00053972,31]
[312938644,1706470300890,-500.0,0.00053972,31]
[312938645,1706470300904,-518.95,0.00053972,31]
[312938646,1706470300918,-585.24,0.00053972,31]
[312938647,1706470300932,-540.09,0.00053972,31]
[312938648,1706470300945,-500.0,0.00053972,31]
[312938649,1706470300960,-500.0,0.00053972,31]
[312938650,1706470300974,-500.0,0.00053972,31]
[312938651,1706470300988,-500.0,0.00053972,31]
[312938652,1706470301002,-500.0,0.00053972,31]
[312938653,1706470301018,-604.09,0.00053972,31]
[312938654,1706470301031,-500.0,0.00053972,31]
[312938655,1706470301045,-500.0,0.00053972,31]
[312938656,1706470301059,-667.98,0.00053972,2]
[312938657,1706470301072,-980.3,0.00053972,31]
[312938658,1706470301086,-632.01725617,0.00053972,31]
[312938659,1706470301100,-1037.01,0.00053972,31]
[312938660,1706470301114,-500.0,0.00053972,31]
[312938661,1706470301129,-935.8,0.00053972,31]
[312938662,1706470301143,-1201.8,0.00053972,31]
[312938663,1706470301157,-500.0,0.00053972,31]
[312938664,1706470301351,-500.0,0.00053972,31]
[312938665,1706470301366,-649.1,0.00053972,31]
[312938666,1706470301375,-1061.64,0.00053972,31]
[312938667,1706470301385,-500.0,0.00053972,31]
[312938668,1706470301394,-500.0,0.00053972,31]
[312938669,1706470301404,-500.0,0.00053972,31]
[312938670,1706470301413,-687.49,0.00053972,31]
[312938671,1706470301422,-934.77,0.00053972,31]
[312938672,1706470301431,-500.0,0.00053972,31]
[312938673,1706470301440,-710.56,0.00053972,31]
[312938674,1706470301450,-596.07,0.00053972,31]
[312938675,1706470301459,-500.0,0.00053972,31]
[312938676,1706470301468,-500.0,0.00053972,31]
[312938677,1706470301478,-500.0,0.00053972,31]
[312938678,1706470301487,-500.0,0.00053972,31]
[312938679,1706470301496,-735.56,0.00053972,31]
[312938680,1706470301505,-500.0,0.00053972,31]
[312938681,1706470301515,-500.0,0.00053972,31]
[312938682,1706470301524,-500.0,0.00053972,31]
[312938683,1706470301533,-500.0,0.00053972,31]
[312938684,1706470301542,-692.89,0.00053972,31]
[312938685,1706470301553,-500.0,0.00053972,31]
[312938686,1706470301562,-500.0,0.00053972,31]
[312938687,1706470301572,-760.18,0.00053972,31]
[312938688,1706470301581,-500.0,0.00053972,31]
[312938689,1706470301590,-273.27873554,0.00053972,31]
[312938690,1706470301600,-500.0,0.00053972,31]
[312938691,1706470301608,-158.56,0.00053972,31]
[312938692,1706470301618,-500.0,0.00053972,31]
[312938693,1706470301629,-537.29,0.00053972,31]
[312938694,1706470301639,-500.0,0.00053972,31]
[312938695,1706470301648,-500.0,0.00053972,31]
[312938696,1706470301658,-670.03,0.00053972,31]
[312938697,1706470301667,-949.98,0.00053972,31]
[312938698,1706470301677,-500.0,0.00053972,31]
[312938699,1706470301687,-500.0,0.00053972,31]
[312938700,1706470301697,-500.0,0.00053972,31]
[312938701,1706470301706,-500.0,0.00053972,31]
[312938702,1706470301716,-500.0,0.00053972,31]
[312938703,1706470301726,-1013.95,0.00053972,31]
[312938704,1706470301736,-550.0,0.00053972,30]
[312938705,1706470301745,-500.0,0.00053972,31]
[312938706,1706470301755,-500.0,0.00053972,31]
[312938707,1706470301764,-500.0,0.00053972,31]
[312938708,1706470301773,-500.0,0.00053972,31]
[312938709,1706470301782,-635.57,0.00053972,31]
[312938710,1706470301791,-500.0,0.00053972,31]
[312938711,1706470301801,-500.0,0.00053972,31]
[312938712,1706470301810,-500.0,0.00053972,31]
[312938713,1706470301819,-600.05,0.00053972,31]
[312938714,1706470301828,-500.0,0.00053972,31]
[312938715,1706470301838,-500.0,0.00053972,31]
[312938716,1706470301848,-500.0,0.00053972,31]
[312938717,1706470301857,-500.0,0.00053972,31]
[312938718,1706470301866,-154.45,0.00053972,31]
[312938719,1706470301876,-500.0,0.00053972,31]
[312938720,1706470301887,-500.0,0.00053972,31]
[312938721,1706470301898,-576.89,0.00053972,31]
[312938722,1706470301908,-913.1,0.00053972,31]
[312938723,1706470301918,-500.0,0.00053972,31]
[312938724,1706470301927,-500.0,0.00053972,31]
[312938725,1706470301939,-699.2,0.00053972,31]
[312938726,1706470301950,-500.0,0.00053972,31]
[312938727,1706470301960,-859.35,0.00053972,31]
[312938728,1706470301971,-500.0,0.00053972,31]
[312938729,1706470301980,-500.0,0.00053972,31]
[312938730,1706470301989,-500.0,0.00053972,31]
[312938731,1706470301999,-500.0,0.00053972,31]
[312938732,1706470302012,-500.0,0.00053972,31]
[312938733,1706470302022,-500.0,0.00053972,31]
[312938734,1706470302033,-226.54,0.00053972,31]
[312938735,1706470302042,-500.0,0.00053972,31]
[312938736,1706470302052,-566.54,0.00053972,31]
[312938737,1706470302062,-500.0,0.00053972,31]
[312938738,1706470302072,-500.0,0.00053972,31]
[312938739,1706470302081,-500.0,0.00053972,31]
[312938740,1706470302091,-500.0,0.00053972,31]
[312938741,1706470302099,-500.0,0.00053972,31]
[312938742,1706470302108,-500.0,0.00053972,31]
[312938743,1706470302119,-500.0,0.00053972,31]
[312938744,1706470302130,-663.0,0.00053972,31]
[312938745,1706470302139,-500.0,0.00053972,31]
[312938746,1706470302147,-524.36,0.00053972,31]
[312938747,1706470302157,-500.0,0.00053972,31]
[312938748,1706470302167,-500.0,0.00053972,31]
[312938749,1706470302177,-500.0,0.00053972,31]
[312938750,1706470302187,-993.17,0.00053972,5]
[312938751,1706470302196,-500.0,0.00053972,31]
[312938752,1706470302206,-500.0,0.00053972,31]
[312938753,1706470302215,-1254.98,0.00053972,7]
[312938754,1706470302224,-1000.0,0.00053972,31]
[312938755,1706470302235,-397.46798086,0.00053972,31]
[312938756,1706470302245,-593.23,0.00053972,31]
[312938757,1706470302256,-500.0,0.00053972,31]
[312938758,1706470302266,-500.0,0.00053972,31]
[312938759,1706470302275,-787.1,0.00053972,31]
[312938760,1706470302284,-500.0,0.00053972,31]
[312938761,1706470302293,-500.0,0.00053972,31]
[312938762,1706470302303,-727.11,0.00053972,31]
[312938763,1706470302311,-1003.11,0.00053972,31]
[312938764,1706470302321,-500.0,0.00053972,31]
[312938765,1706470302330,-500.0,0.00053972,31]
[312938766,1706470302339,-500.0,0.00053972,31]
[312938767,1706470302349,-500.0,0.00053972,31]
[312938768,1706470302360,-500.0,0.00053972,14]
[312938769,1706470302370,-865.33,0.00053972,31]
[312938770,1706470302379,-162.91,0.00053972,31]
[312938771,1706470302389,-729.98,0.00053972,31]
[312938772,1706470302398,-500.0,0.00053972,31]
[312938773,1706470302408,-500.0,0.00053972,31]
[312938774,1706470302417,-500.0,0.00053972,31]
[312938775,1706470302427,-571.22,0.00053972,31]
[312938776,1706470302436,-500.0,0.00053972,31]
[312938777,1706470302445,-405.06,0.00053972,31]
[312938778,1706470302454,-356.96536751,0.00053972,31]
[312938779,1706470302463,-733.2,0.00053972,31]
[312938780,1706470302472,-829.02,0.00053972,31]
[312938781,1706470302482,-500.0,0.00053972,31]
[312938782,1706470302491,-500.0,0.00053972,31]
[312938783,1706470302501,-500.0,0.00053972,31]
[312938784,1706470302510,-500.0,0.00053972,31]
[312938785,1706470302519,-573.62,0.00053972,31]
[312938786,1706470302529,-500.0,0.00053972,31]
[312938787,1706470302539,-834.44,0.00053972,31]
[312938788,1706470302548,-851.16,0.00053972,31]
[312938789,1706470302557,-1000.0,0.00053972,20]
[312938790,1706470302566,-875.07,0.00053972,31]
[312938791,1706470302575,-500.0,0.00053972,31]
[312938792,1706470302584,-1079.37,0.00053972,31]
[312938793,1706470302593,-1018.07,0.00053972,31]
[312938794,1706470302603,-500.0,0.00053972,31]
[312938795,1706470302612,-995.96,0.00053972,31]
[312938796,1706470302622,-500.0,0.00053972,31]
[312938797,1706470302632,-780.4,0.00053972,31]
[312938798,1706470302641,-500.0,0.00053972,31]
[312938799,1706470302651,-500.0,0.00053972,31]
[312938800,1706470302660,-500.0,0.00053972,31]
[312938801,1706470302670,-500.0,0.00053972,31]
[312938802,1706470302679,-500.0,0.00053972,7]
[312938803,1706470302688,-709.25,0.00053972,31]
[312938804,1706470302698,-500.0,0.00053972,31]
[312938805,1706470302707,-500.0,0.00053972,31]
[312938806,1706470302716,-500.0,0.00053972,31]
[312938807,1706470302726,-500.0,0.00053972,31]
[312938808,1706470302735,-500.0,0.00053972,31]
[312938809,1706470302745,-500.0,0.00053972,31]
[312938810,1706470302754,-500.0,0.00053972,31]
[312938811,1706470302764,-500.0,0.00053972,31]
[312938812,1706470302773,-500.0,0.00053972,31]
[312938813,1706470302783,-500.0,0.00053972,31]
[312938814,1706470302792,-667.21,0.00053972,31]
[312938815,1706470302802,-1254.44,0.00053972,31]
[312938816,1706470302811,-500.0,0.00053972,31]
[312938817,1706470302821,-500.0,0.00053972,31]
[312938818,1706470302830,-500.0,0.00053972,31]
[312938819,1706470302840,-500.0,0.00053972,31]
[312938820,1706470302850,-500.0,0.00053972,31]
[312938821,1706470302859,-500.0,0.00053972,31]
[312938822,1706470302869,-500.0,0.00053972,31]
[312938823,1706470302878,-607.99,0.00053972,31]
[312938824,1706470302888,-500.0,0.00053972,31]
[312938825,1706470302897,-500.0,0.00053972,31]
[312938826,1706470302907,-752.97,0.00053972,31]
[312938827,1706470302917,-521.4,0.00053972,31]
[312938828,1706470302926,-769.32,0.00053972,31]
[312938829,1706470302936,-500.0,0.00053972,31]
[312938830,1706470302945,-500.0,0.00053972,31]
[312938831,1706470302955,-780.39,0.00053972,31]
[312938832,1706470302964,-673.98,0.00053972,31]
[312938833,1706470302974,-540.45129012,0.00053972,31]
[312938834,1706470302983,-188.02,0.00053972,31]
[312938835,1706470302992,-500.0,0.00053972,31]
[312938836,1706470303001,-806.83,0.00053972,31]
[312938837,1706470303011,-500.0,0.00053972,31]
[312938838,1706470303021,-655.92,0.00053972,31]
[312938839,1706470303030,-500.0,0.00053972,31]
[312938840,1706470303039,-809.17,0.00053972,31]
[312938841,1706470303049,-500.0,0.00053972,31]
[312938842,1706470303059,-500.0,0.00053972,31]
[312938843,1706470303068,-500.0,0.00053973,90]
[312938844,1706470303077,-152.50530026,0.0005398,60]
[312938845,1706470303086,-153.79459058,0.00053983,60]
[312938846,1706470303097,-360.32885597,0.00053986,60]
[312938847,1706470303106,-153.60830703,0.00053987,30]
[312938848,1706470303115,-200.0,0.00053987,43]
[312938849,1706470303125,-200.0,0.00053987,41]
[312938850,1706470303134,-200.0,0.00053987,39]
[312938851,1706470303143,-200.0,0.00053987,37]
[312938852,1706470303152,-200.0,0.00053987,35]
[312938853,1706470303161,-200.0,0.00053987,51]
[312938854,1706470303170,-200.0,0.00053987,54]
[312938855,1706470303179,-2797.21012065,0.00053989,54]
[312938856,1706470303189,-799.0,0.0005399,2]
[312938857,1706470303198,-707.0,0.0005399,2]
[312938858,1706470303208,-152.50530026,0.00053997,60]
[312938859,1706470303218,-155.46441183,0.00053998,60]
[312938860,1706470303227,-5000.0,0.00054,2]
[312938861,1706470303237,-11673.88200185,0.00054,5]
[312938862,1706470303246,-1000000.0,0.00054,120]
[312938863,1706470303255,-13605.70954051,0.00054,30]
[312938864,1706470303264,-185.08925965,0.00054,90]
[312938865,1706470303273,-153.1450112,0.00054,15]
[312938866,1706470303283,-599.99999901,0.00054,55]
[312938867,1706470303292,-318.50919467,0.00054,20]
[312938868,1706470303301,-1407.38574986,0.00054,10]
[312938869,1706470303310,-633.81198011,0.00054,7]
[312938870,1706470303320,-513.4181358,0.00054,25]
[312938871,1706470303329,-619.0,0.00054,120]
[312938872,1706470303338,-200.0,0.00054,30]
[312938873,1706470303347,-531.02527739,0.00054,60]
[312938874,1706470303356,-18484.0,0.00054,60]
[312938875,1706470303366,-3676.0,0.00054,60]
[312938876,1706470303375,-719.0,0.00054,60]
[312938877,1706470303384,-56014.67973146,0.00054,2]
[312938878,1706470303393,-300.0,0.00054,25]
[312938879,1706470303402,-521.5421775,0.00054,25]
[312938880,1706470303412,-201.0,0.00054,43]
[312938881,1706470303422,-150.50894753,0.00054003,60]
[312938882,1706470303431,-161.33670803,0.00054004,60]
[312938883,1706470303440,-157.72167214,0.00054009,60]
[312938884,1706470303450,-201.18589708,0.00054011,60]
[312938885,1706470303458,-171.32865618,0.00054011,30]
[312938886,1706470303468,-150.0,0.00054012,30]
[312938887,1706470303477,-150.0,0.00054012,30]
[312938888,1706470303486,-1313.94861369,0.00054016,60]
[312938889,1706470303495,-168.67913053,0.00054021,60]
[312938890,1706470303505,-167.82497411,0.00054023,60]
[312938891,1706470303514,-155.61324619,0.00054026,60]
[312938892,1706470303649,-175.82197617,0.00054027,60]
[312938893,1706470303659,-1313.94861369,0.00054029,60]
[312938894,1706470303668,-161.33670803,0.0005403,60]
[312938895,1706470303677,-150.50894753,0.00054032,60]
[312938896,1706470303686,-153.79459058,0.00054037,60]
[312938897,1706470303695,-157.72167214,0.00054041,60]
[312938898,1706470303705,-489.71573801,0.00054044,60]
[312938899,1706470303714,-152.50530026,0.00054047,60]
[312938900,1706470303725,-157.0406716,0.0005405,60]
[312938901,1706470303734,-151.44914822,0.00054052,60]
[312938902,1706470303744,-1313.94861369,0.00054056,60]
[312938903,1706470303753,-152.50530026,0.00054057,60]
[312938904,1706470303762,-157.72167214,0.00054062,60]
[312938905,1706470303771,-201.18589708,0.00054064,60]
[312938906,1706470303781,-500.0,0.00054066,120]
[312938907,1706470303791,-168.67913053,0.00054072,60]
[312938908,1706470303801,-162.77789855,0.00054072,60]
[312938909,1706470303810,-175.82197617,0.00054072,60]
[312938910,1706470303820,-201.18589708,0.00054079,60]
[312938911,1706470303829,-257.12974616,0.00054079,30]
[312938912,1706470303839,-854.0,0.00054079,30]
[312938913,1706470303849,-499.0,0.00054079,30]
[312938914,1706470303858,-1459.99762587,0.00054079,30]
[312938915,1706470303867,-54780.0,0.00054079,30]
[312938916,1706470303877,-175.82197617,0.00054085,60]
[312938917,1706470303886,-161.33670803,0.00054089,60]
[312938918,1706470303896,-157.30336053,0.00054101,60]
[312938919,1706470303906,-201.18589708,0.00054101,60]
[312938920,1706470303916,-150.30324068,0.00054104,60]
[312938921,1706470303926,-360.32885597,0.00054106,60]
[312938922,1706470303935,-652.52696599,0.00054109,120]
[312938923,1706470303945,-489.71573801,0.0005411,60]
[312938924,1706470303956,-489.71573801,0.00054115,60]
[312938925,1706470303967,-201.18589708,0.00054117,60]
[312938926,1706470303977,-151.44914822,0.00054118,60]
[312938927,1706470303987,-158.32544091,0.00054132,60]
[312938928,1706470303997,-155.46441183,0.00054148,60]
[312938929,1706470304013,-155.46441183,0.0005415,60]
[312938930,1706470304024,-157.72167214,0.00054154,60]
[312938931,1706470304033,-360.32885597,0.00054157,60]
[312938932,1706470304043,-1313.94861369,0.00054161,60]
[312938933,1706470304054,-150.50894753,0.00054163,60]
[312938934,1706470304065,-157.30336053,0.00054164,60]
[312938935,1706470304074,-919.66051627,0.00054166,60]
[312938936,1706470304083,-489.71573801,0.00054168,60]
[312938937,1706470304093,-150.0,0.00054169,30]
[312938938,1706470304102,-157.72167214,0.0005417,60]
[312938939,1706470304111,-919.66051627,0.0005417,60]
[312938940,1706470304121,-151.44914822,0.00054177,60]
[312938941,1706470304131,-489.71573801,0.00054177,60]
[312938942,1706470304140,-1313.94861369,0.00054178,60]
[312938943,1706470304151,-919.66051627,0.00054179,60]
[312938944,1706470304162,-150.50894753,0.00054181,60]
[312938945,1706470304172,-152.68540592,0.00054187,60]
[312938946,1706470304181,-300.0,0.000542,14]
[312938947,1706470304190,-159.53191827,0.00054208,60]
[312938948,1706470304200,-155.46441183,0.0005421,60]
[312938949,1706470304211,-157.72167214,0.00054215,60]
[312938950,1706470304221,-153.65415842,0.00054219,120]
[312938951,1706470304230,-153.65415843,0.00054219,120]
[312938952,1706470304240,-153.79459058,0.00054225,60]
[312938953,1706470304249,-175.82197617,0.00054228,60]
[312938954,1706470304259,-489.71573801,0.00054235,60]
[312938955,1706470304268,-151.44914822,0.00054236,60]
[312938956,1706470304277,-489.71573801,0.00054243,60]
[312938957,1706470304286,-500.0,0.00054246,120]
[312938958,1706470304295,-299.11208144,0.00054246,120]
[312938959,1706470304304,-500.0,0.00054246,120]
[312938960,1706470304314,-500.0,0.00054246,120]
[312938961,1706470304323,-563.76,0.00054246,120]
[312938962,1706470304333,-500.0,0.00054246,120]
[312938963,1706470304342,-500.0,0.00054246,120]
[312938964,1706470304351,-573.51,0.00054246,120]
[312938965,1706470304361,-500.0,0.00054246,120]